[Event "GER-ch Women 2020"]
[Site "Magdeburg"]
[Date "2020.08.17"]
[Round "2.3"]
[White "Vidonyak, Nellya"]
[Black "Hielscher, Ursula"]
[Result "1-0"]
[ECO "D00"]
[WhiteElo "2136"]
[BlackElo "1789"]
[Annotator "ChessBase"]
[PlyCount "77"]
[EventDate "2020.08.16"]
[EventType "swiss"]
[EventCountry "GER"]
[SourceTitle "playchess.com"]
[Source "ChessBase"]
[SourceQuality "1"]
[TimeControl "40/5400+30:1800+30"]

1. d4 {[%emt 0:00:00]} d5 {[%emt 0:00:00]} 2. e3 {[%emt 0:00:00]} c6 {[%emt 0:00:00]} 3. b3 {[%emt 0:00:33]} Bf5 {[%emt 0:00:35]} 4. Nf3 {[%emt 0:00:57]} e6 {[%emt 0:00:41]} 5. Be2 {[%emt 0:01:16]} Bb4+ {[%emt 0:00:36]} 6. c3 {[%emt 0:02:16]} Ba5 {[%emt 0:00:19]} 7. O-O {[%emt 0:02:00]} Nf6 {[%emt 0:01:44]} 8. b4 {[%emt 0:06:13]} Bc7 {[%emt 0:00:36]} 9. b5 {[%emt 0:03:11]} O-O {[%emt 0:03:48]} 10. a4 {[%emt 0:05:55]} cxb5 {[%emt 0:04:30]} 11. Bxb5 {[%emt 0:04:03]} a6 {[%emt 0:02:03]} 12. Be2 {[%emt 0:03:46]} Nbd7 {[%emt 0:02:12]} 13. Nbd2 {[%emt 0:06:20]} Rc8 {[%emt 0:06:04]} 14. Ba3 {[%emt 0:01:46]} Re8 {[%emt 0:02:00]} 15. Qb3 {[%emt 0:03:51]} b5 {[%emt 0:05:59]} 16. axb5 {[%emt 0:02:19]} axb5 {[%emt 0:00:05]} 17. Bxb5 {[%emt 0:00:59]} Rb8 {[%emt 0:00:23]} 18. c4 {[%emt 0:01:44]} dxc4 {[%emt 0:12:12]} 19. Qxc4 {[%emt 0:01:30]} e5 {[%emt 0:05:52]} 20. Rfc1 {[%emt 0:09:00]} Ba5 {[%emt 0:06:46]} 21. Bxd7 {[%emt 0:07:52]} Nxd7 {[%emt 0:02:13]} 22. e4 {[%emt 0:13:25]} Be6 {[%emt 0:09:40]} 23. d5 {[%emt 0:00:43]} Bg4 {[%emt 0:00:34]} 24. Qd3 {[%emt 0:02:08]} Bb4 {[%emt 0:09:16]} 25. Bxb4 {[%emt 0:04:41]} Rxb4 {[%emt 0:00:02]} 26. h3 {[%emt 0:00:23]} Bh5 {[%emt 0:00:44]} 27. Qc3 {[%emt 0:01:31]} Rb8 {[%emt 0:04:36]} 28. Ra7 {[%emt 0:01:38]} Ra8 {[%emt 0:04:38]} 29. Rc7 {[%emt 0:02:18]} f6 {[%emt 0:02:34]} 30. Qc6 {[%emt 0:01:50]} Re7 {[%emt 0:01:55]} 31. d6 {[%emt 0:04:56]} Rf7 {[%emt 0:00:25]} 32. Nh4 {[%emt 0:01:04]} Nf8 {[%emt 0:01:05]} 33. Nf5 {[%emt 0:00:34]} Ne6 {[%emt 0:01:15]} 34. Ne7+ {[%emt 0:01:51]} Kh8 {[%emt 0:01:21]} 35. Rc8 {[%emt 0:02:07]} Rxc8 {[%emt 0:00:08]} 36. Qxc8 {[%emt 0:00:19]} Qxc8 {[%emt 0:00:26]} 37. Rxc8+ {[%emt 0:00:07]} Rf8 {[%emt 0:00:16]} 38. d7 {[%emt 0:00:38]} Nd8 {[%emt 0:00:49]} 39. Nc6 {[%emt 0:00:27]} 1-0

[Event "GER-ch Women 2020"]
[Site "Magdeburg"]
[Date "2020.08.17"]
[Round "2.4"]
[White "Heutling, Elina"]
[Black "Burchardt, Brigitte"]
[Result "0-1"]
[ECO "B90"]
[WhiteElo "1833"]
[BlackElo "2091"]
[Annotator "ChessBase"]
[PlyCount "78"]
[EventDate "2020.08.16"]
[EventType "swiss"]
[EventCountry "GER"]
[SourceTitle "playchess.com"]
[Source "ChessBase"]
[SourceQuality "1"]
[TimeControl "40/5400+30:1800+30"]

1. e4 {[%emt 0:00:00]} c5 {[%emt 0:00:00]} 2. Nf3 {[%emt 0:00:00]} d6 {[%emt 0:00:00]} 3. d4 {[%emt 0:00:00]} cxd4 {[%emt 0:00:00]} 4. Nxd4 {[%emt 0:00:00]} Nf6 {[%emt 0:00:00]} 5. Nc3 {[%emt 0:00:00]} a6 {[%emt 0:00:00]} 6. Be3 {[%emt 0:00:19]} e5 {[%emt 0:01:14]} 7. Nb3 {[%emt 0:00:09]} Be6 {[%emt 0:01:45]} 8. f3 {[%emt 0:01:34]} Nbd7 {[%emt 0:03:14]} 9. Qd2 {[%emt 0:02:30]} Rc8 {[%emt 0:03:21]} 10. g4 {[%emt 0:06:49]} Nb6 {[%emt 0:02:56]} 11. Qf2 {[%emt 0:09:50]} Nfd7 {[%emt 0:05:05]} 12. O-O-O {[%emt 0:04:24]} Be7 {[%emt 0:08:55]} 13. h4 {[%emt 0:06:18]} O-O {[%emt 0:03:55]} 14. g5 {[%emt 0:11:10]} Rxc3 {[%emt 0:20:46]} 15. bxc3 {[%emt 0:08:25]} d5 {[%emt 0:00:04]} 16. Nc5 {[%emt 0:13:47]} Nxc5 {[%emt 0:08:26]} 17. Bxc5 {[%emt 0:00:41]} Na4 {[%emt 0:00:29]} 18. Bxe7 {[%emt 0:06:06]} Qxe7 {[%emt 0:00:05]} 19. Rd3 {[%emt 0:07:08]} dxe4 {[%emt 0:00:45]} 20. fxe4 {[%emt 0:00:27]} Bc4 {[%emt 0:00:18]} 21. Qd2 {[%emt 0:08:03]} Qa3+ {[%emt 0:01:06]} 22. Kd1 {[%emt 0:00:06]} Bxd3 {[%emt 0:01:03]} 23. Bxd3 {[%emt 0:00:28]} Nxc3+ {[%emt 0:02:44]} 24. Ke1 {[%emt 0:00:07]} Qc5 {[%emt 0:09:29]} 25. h5 {[%emt 0:05:40]} Nb1 {[%emt 0:07:03]} 26. Qc1 {[%emt 0:03:55]} Qb4+ {[%emt 0:01:40]} 27. Kf2 {[%emt 0:01:34]} Nc3 {[%emt 0:00:03]} 28. Qe1 {[%emt 0:01:38]} f5 {[%emt 0:01:01]} 29. exf5 {[%emt 0:01:03]} e4 {[%emt 0:00:42]} 30. Be2 {[%emt 0:00:17]} Rxf5+ {[%emt 0:00:29]} 31. Kg2 {[%emt 0:00:28]} Rxg5+ {[%emt 0:00:35]} 32. Kh3 {[%emt 0:00:38]} e3 {[%emt 0:06:46]} 33. Rf1 {[%emt 0:01:19]} h6 {[%emt 0:01:37]} 34. Bf3 {[%emt 0:00:59]} Qc5 {[%emt 0:01:46]} 35. a3 {[%emt 0:00:51]} Qf5+ {[%emt 0:02:21]} 36. Kh2 {[%emt 0:00:26]} Qf4+ {[%emt 0:00:56]} 37. Kh1 {[%emt 0:00:22]} Ne4 {[%emt 0:00:34]} 38. Bxe4 {[%emt 0:00:26]} Qxe4+ {[%emt 0:00:12]} 39. Kh2 {[%emt 0:00:05]} Qg2# {[%emt 0:00:04]} 0-1

[Event "GER-ch Women 2020"]
[Site "Magdeburg"]
[Date "2020.08.17"]
[Round "2.5"]
[White "Von Herman, Brigitte"]
[Black "Stowicek, Yara Mathilda"]
[Result "1/2-1/2"]
[ECO "C50"]
[WhiteElo "2085"]
[BlackElo "1674"]
[Annotator "ChessBase"]
[PlyCount "88"]
[EventDate "2020.08.16"]
[EventType "swiss"]
[EventCountry "GER"]
[SourceTitle "playchess.com"]
[Source "ChessBase"]
[SourceQuality "1"]
[TimeControl "40/5400+30:1800+30"]

1. e4 {[%emt 0:00:00]} e5 {[%emt 0:00:00]} 2. Nf3 {[%emt 0:00:00]} Nc6 {[%emt 0:00:00]} 3. Bc4 {[%emt 0:00:00]} Bc5 {[%emt 0:00:01]} 4. d3 {[%emt 0:00:46]} Nf6 {[%emt 0:00:43]} 5. O-O {[%emt 0:00:32]} d6 {[%emt 0:00:43]} 6. c3 {[%emt 0:00:26]} O-O {[%emt 0:01:48]} 7. Nbd2 {[%emt 0:01:24]} a6 {[%emt 0:00:26]} 8. Bb3 {[%emt 0:00:09]} Ba7 {[%emt 0:00:38]} 9. h3 {[%emt 0:00:17]} Be6 {[%emt 0:09:45]} 10. Re1 {[%emt 0:05:27]} h6 {[%emt 0:03:36]} 11. Nf1 {[%emt 0:01:15]} Qd7 {[%emt 0:06:30]} 12. Ng3 {[%emt 0:04:21]} Ne7 {[%emt 0:02:30]} 13. d4 {[%emt 0:11:11]} Bxb3 {[%emt 0:05:33]} 14. axb3 {[%emt 0:06:51]} Ng6 {[%emt 0:01:23]} 15. Be3 {[%emt 0:07:08]} Rfe8 {[%emt 0:02:26]} 16. d5 {[%emt 0:07:16]} Nf4 {[%emt 0:10:21]} 17. Nh4 {[%emt 0:07:06]} Kh7 {[%emt 0:09:41]} 18. Bxa7 {[%emt 0:08:58]} Rxa7 {[%emt 0:00:15]} 19. Qf3 {[%emt 0:00:13]} Raa8 {[%emt 0:06:59]} 20. Ne2 {[%emt 0:01:31]} N6h5 {[%emt 0:04:22]} 21. g4 {[%emt 0:04:53]} Nxe2+ {[%emt 0:01:09]} 22. Rxe2 {[%emt 0:04:03]} Nf4 {[%emt 0:00:18]} 23. Ree1 {[%emt 0:01:55]} Rf8 {[%emt 0:08:56]} 24. Ng2 {[%emt 0:00:23]} Nxg2 {[%emt 0:01:10]} 25. Kxg2 {[%emt 0:00:10]} g6 {[%emt 0:00:59]} 26. Qf6 {[%emt 0:03:38]} Qd8 {[%emt 0:01:14]} 27. Qxd8 {[%emt 0:00:31]} Raxd8 {[%emt 0:00:05]} 28. Ra4 {[%emt 0:07:13]} f5 {[%emt 0:01:15]} 29. gxf5 {[%emt 0:01:53]} gxf5 {[%emt 0:00:28]} 30. f4 {[%emt 0:01:47]} Rd7 {[%emt 0:07:38]} 31. exf5 {[%emt 0:05:59]} Rg7+ {[%emt 0:03:09]} 32. Kh1 {[%emt 0:03:41]} Rxf5 {[%emt 0:00:45]} 33. fxe5 {[%emt 0:01:10]} dxe5 {[%emt 0:02:46]} 34. Rb4 {[%emt 0:01:03]} Rf3 {[%emt 0:02:38]} 35. Kh2 {[%emt 0:00:55]} Rf2+ {[%emt 0:01:20]} 36. Kh1 {[%emt 0:00:02]} Rgg2 {[%emt 0:01:44]} 37. Rxb7 {[%emt 0:00:25]} Rh2+ {[%emt 0:01:51]} 38. Kg1 {[%emt 0:00:05]} Rfg2+ {[%emt 0:00:14]} 39. Kf1 {[%emt 0:00:09]} Rf2+ {[%emt 0:02:07]} 40. Kg1 {[%emt 0:00:06]} Rfg2+ {[%emt 0:00:19]} 41. Kf1 {[%emt 0:30:38]} Rxb2 {[%emt 0:31:58]} 42. Rxc7+ {[%emt 0:00:43]} Kg6 {[%emt 0:00:44]} 43. Kg1 {[%emt 0:00:17]} Rhg2+ {[%emt 0:00:00]} 44. Kh1 {[%emt 0:00:00]} Rh2+ 1/2-1/2

[Event "GER-ch Women 2020"]
[Site "Magdeburg"]
[Date "2020.08.17"]
[Round "2.6"]
[White "Bluebaum, Johanna"]
[Black "Dietrich, Mareike"]
[Result "1/2-1/2"]
[ECO "E43"]
[WhiteElo "2011"]
[BlackElo "1699"]
[Annotator "ChessBase"]
[PlyCount "68"]
[EventDate "2020.08.16"]
[EventType "swiss"]
[EventCountry "GER"]
[SourceTitle "playchess.com"]
[Source "ChessBase"]
[SourceQuality "1"]
[TimeControl "40/5400+30:1800+30"]

1. d4 {[%emt 0:00:00]} Nf6 {[%emt 0:00:00]} 2. c4 {[%emt 0:00:00]} e6 {[%emt 0:00:00]} 3. Nc3 {[%emt 0:00:58]} Bb4 {[%emt 0:00:00]} 4. e3 {[%emt 0:00:04]} b6 {[%emt 0:00:00]} 5. Bd3 {[%emt 0:02:52]} Bb7 {[%emt 0:00:01]} 6. Nf3 {[%emt 0:01:50]} Ne4 {[%emt 0:01:22]} 7. Qc2 {[%emt 0:01:29]} f5 {[%emt 0:00:15]} 8. O-O {[%emt 0:09:30]} Nxc3 {[%emt 0:02:14]} 9. bxc3 {[%emt 0:00:58]} Bxf3 {[%emt 0:00:34]} 10. gxf3 {[%emt 0:17:11]} Bd6 {[%emt 0:01:13]} 11. e4 {[%emt 0:07:23]} Qh4 {[%emt 0:01:59]} 12. e5 {[%emt 0:04:04]} Be7 {[%emt 0:00:06]} 13. d5 {[%emt 0:08:38]} g5 {[%emt 0:08:33]} 14. Kh1 {[%emt 0:03:44]} Rg8 {[%emt 0:22:30]} 15. Rg1 {[%emt 0:02:32]} Kf7 {[%emt 0:10:28]} 16. Be3 {[%emt 0:03:11]} f4 {[%emt 0:06:45]} 17. Bd2 {[%emt 0:04:04]} Na6 {[%emt 0:09:34]} 18. dxe6+ {[%emt 0:04:32]} dxe6 {[%emt 0:01:25]} 19. Rg4 {[%emt 0:02:22]} Qxf2 {[%emt 0:04:04]} 20. Rf1 {[%emt 0:00:13]} Qc5 {[%emt 0:00:02]} 21. Bxh7 {[%emt 0:01:52]} Rg7 {[%emt 0:00:21]} 22. Bxf4 {[%emt 0:05:20]} Rh8 {[%emt 0:02:45]} 23. Be4 {[%emt 0:03:55]} gxf4 {[%emt 0:02:11]} 24. Rxf4+ {[%emt 0:01:21]} Ke8 {[%emt 0:00:11]} 25. Qa4+ {[%emt 0:00:43]} b5 {[%emt 0:02:23]} 26. cxb5 {[%emt 0:01:49]} Qxe5 {[%emt 0:01:42]} 27. bxa6+ {[%emt 0:06:57]} Kd8 {[%emt 0:00:58]} 28. Qd4+ {[%emt 0:01:15]} Bd6 {[%emt 0:00:23]} 29. Qxe5 {[%emt 0:01:24]} Bxe5 {[%emt 0:00:06]} 30. Rg4 {[%emt 0:00:06]} Rxh2+ {[%emt 0:00:52]} 31. Kg1 {[%emt 0:00:04]} Rxa2 {[%emt 0:01:34]} 32. Rd1+ {[%emt 0:00:52]} Ke7 {[%emt 0:01:09]} 33. Rxg7+ {[%emt 0:01:49]} Bxg7 {[%emt 0:00:02]} 34. Bb7 {[%emt 0:00:59]} Bxc3 {[%emt 0:01:58]} 1/2-1/2

[Event "GER-ch Women 2020"]
[Site "Magdeburg"]
[Date "2020.08.17"]
[Round "2.7"]
[White "Rogozenco, Teodora"]
[Black "Schumann, Rabea"]
[Result "1-0"]
[ECO "D80"]
[WhiteElo "1979"]
[BlackElo "1871"]
[Annotator "ChessBase"]
[PlyCount "93"]
[EventDate "2020.08.16"]
[EventType "swiss"]
[EventCountry "GER"]
[SourceTitle "playchess.com"]
[Source "ChessBase"]
[SourceQuality "1"]
[TimeControl "40/5400+30:1800+30"]

1. d4 {[%emt 0:00:00]} Nf6 {[%emt 0:00:00]} 2. c4 {[%emt 0:00:00]} g6 {[%emt 0:00:00]} 3. Nc3 {[%emt 0:00:00]} d5 {[%emt 0:00:07]} 4. Bg5 {[%emt 0:00:05]} Bg7 {[%emt 0:02:12]} 5. e3 {[%emt 0:08:14]} c6 {[%emt 0:04:39]} 6. Bd3 {[%emt 0:01:20]} O-O {[%emt 0:00:40]} 7. Nf3 {[%emt 0:08:08]} Bg4 {[%emt 0:06:26]} 8. h3 {[%emt 0:02:17]} Bxf3 {[%emt 0:04:20]} 9. Qxf3 {[%emt 0:00:46]} Qa5 {[%emt 0:02:32]} 10. Bxf6 {[%emt 0:14:39]} Bxf6 {[%emt 0:01:11]} 11. cxd5 {[%emt 0:00:14]} cxd5 {[%emt 0:00:37]} 12. Qxd5 {[%emt 0:01:11]} Qb4 {[%emt 0:00:45]} 13. Qb3 {[%emt 0:08:03]} Nc6 {[%emt 0:16:01]} 14. O-O {[%emt 0:04:54]} e6 15. Qxb4 {[%emt 0:06:17]} Nxb4 {[%emt 0:09:48]} 16. Be4 {[%emt 0:06:26]} Rab8 {[%emt 0:16:32]} 17. Rac1 {[%emt 0:00:30]} a5 18. a3 {[%emt 0:02:17]} Na6 {[%emt 0:02:42]} 19. Nb5 {[%emt 0:03:33]} Rfd8 20. Bf3 Kf8 {[%emt 0:13:26]} 21. Rc4 {[%emt 0:01:06]} Be7 {[%emt 0:04:44]} 22. Ra4 {[%emt 0:06:03]} b6 {[%emt 0:03:49]} 23. b4 {[%emt 0:00:42]} Rdc8 {[%emt 0:02:57]} 24. bxa5 {[%emt 0:04:24]} Rc2 {[%emt 0:01:41]} 25. Rb1 {[%emt 0:05:49]} bxa5 {[%emt 0:02:02]} 26. Rxa5 {[%emt 0:00:41]} Nc7 {[%emt 0:00:52]} 27. Be4 {[%emt 0:01:21]} Rc4 {[%emt 0:00:15]} 28. Bd3 {[%emt 0:01:53]} Rc6 {[%emt 0:00:18]} 29. a4 {[%emt 0:01:54]} Nxb5 {[%emt 0:00:29]} 30. axb5 {[%emt 0:01:51]} Rc3 {[%emt 0:00:33]} 31. Be4 {[%emt 0:00:45]} Bd8 {[%emt 0:00:22]} 32. Ra2 Bb6 33. Bc6 {[%emt 0:01:16]} Bc7 {[%emt 0:02:53]} 34. Rba1 {[%emt 0:02:28]} Rb3 {[%emt 0:01:06]} 35. Kf1 {[%emt 0:00:19]} Bd6 {[%emt 0:01:19]} 36. Ke2 {[%emt 0:02:42]} h6 {[%emt 0:00:51]} 37. Kd1 {[%emt 0:01:43]} g5 {[%emt 0:00:45]} 38. Kc2 {[%emt 0:01:25]} Rb4 {[%emt 0:00:06]} 39. Kc3 {[%emt 0:00:56]} Rc8 {[%emt 0:01:09]} 40. Ra5 {[%emt 0:01:18]} Kg7 {[%emt 0:00:56]} 41. f3 {[%emt 0:06:29]} Kg6 {[%emt 0:08:30]} 42. e4 {[%emt 0:05:52]} f6 {[%emt 0:08:02]} 43. Ra8 {[%emt 0:01:07]} Rxa8 {[%emt 0:03:26]} 44. Rxa8 {[%emt 0:00:08]} Rb1 {[%emt 0:02:13]} 45. e5 {[%emt 0:08:32]} Bb4+ {[%emt 0:00:46]} 46. Kc2 {[%emt 0:00:05]} Rg1 {[%emt 0:01:02]} 47. b6 1-0

[Event "GER-ch Women 2020"]
[Site "Magdeburg"]
[Date "2020.08.17"]
[Round "2.8"]
[White "Mehling, Katharina"]
[Black "Kopylov, Luba"]
[Result "1-0"]
[ECO "B54"]
[WhiteElo "1947"]
[BlackElo "2027"]
[Annotator "ChessBase"]
[PlyCount "99"]
[EventDate "2020.08.16"]
[EventType "swiss"]
[EventCountry "GER"]
[SourceTitle "playchess.com"]
[Source "ChessBase"]
[SourceQuality "1"]
[TimeControl "40/5400+30:1800+30"]

1. e4 {[%emt 0:00:00]} c5 {[%emt 0:00:00]} 2. Nf3 {[%emt 0:00:00]} d6 {[%emt 0:00:00]} 3. d4 {[%emt 0:00:00]} cxd4 {[%emt 0:00:00]} 4. Nxd4 {[%emt 0:00:00]} Nf6 {[%emt 0:00:00]} 5. f3 {[%emt 0:00:31]} g6 {[%emt 0:00:16]} 6. c4 {[%emt 0:00:20]} Bg7 {[%emt 0:00:23]} 7. Nc3 {[%emt 0:01:06]} Nc6 {[%emt 0:00:49]} 8. Nc2 {[%emt 0:01:32]} O-O {[%emt 0:03:37]} 9. Be3 {[%emt 0:01:28]} Be6 {[%emt 0:01:07]} 10. Qd2 {[%emt 0:03:43]} Nd7 {[%emt 0:02:08]} 11. Bh6 {[%emt 0:09:24]} Qb6 {[%emt 0:04:54]} 12. Bxg7 {[%emt 0:01:16]} Kxg7 {[%emt 0:00:12]} 13. Ne3 {[%emt 0:01:15]} Qd4 {[%emt 0:13:32]} 14. O-O-O {[%emt 0:06:36]} Qxd2+ {[%emt 0:04:01]} 15. Rxd2 {[%emt 0:00:14]} Rac8 {[%emt 0:05:04]} 16. b3 {[%emt 0:01:52]} a5 {[%emt 0:05:18]} 17. Kb2 {[%emt 0:02:14]} Nc5 {[%emt 0:00:23]} 18. a3 {[%emt 0:02:56]} a4 {[%emt 0:10:15]} 19. b4 {[%emt 0:11:19]} Nb3 {[%emt 0:00:49]} 20. Rd1 {[%emt 0:01:28]} Ra8 {[%emt 0:02:19]} 21. Nb5 Rfc8 {[%emt 0:05:36]} 22. f4 {[%emt 0:27:22]} f6 {[%emt 0:12:02]} 23. Be2 {[%emt 0:04:59]} Bf7 {[%emt 0:10:06]} 24. Nd5 {[%emt 0:02:36]} Ra6 {[%emt 0:09:59]} 25. Ndc3 {[%emt 0:03:25]} Na7 {[%emt 0:02:08]} 26. Nxa7 {[%emt 0:02:08]} Rxa7 {[%emt 0:00:05]} 27. Nxa4 {[%emt 0:01:46]} Rxa4 {[%emt 0:00:10]} 28. Kxb3 {[%emt 0:00:08]} b5 {[%emt 0:00:04]} 29. Rc1 {[%emt 0:00:27]} Rca8 {[%emt 0:03:50]} 30. Ra1 {[%emt 0:00:16]} f5 {[%emt 0:00:12]} 31. exf5 {[%emt 0:00:56]} gxf5 {[%emt 0:00:05]} 32. Rhc1 {[%emt 0:00:51]} Kf6 {[%emt 0:00:29]} 33. Kb2 {[%emt 0:02:13]} bxc4 {[%emt 0:03:31]} 34. Bxc4 {[%emt 0:00:07]} Bxc4 {[%emt 0:00:05]} 35. Rxc4 {[%emt 0:00:04]} e5 {[%emt 0:00:08]} 36. fxe5+ {[%emt 0:01:22]} dxe5 {[%emt 0:00:05]} 37. Kb3 {[%emt 0:02:37]} R4a7 {[%emt 0:01:11]} 38. a4 {[%emt 0:00:49]} e4 {[%emt 0:00:48]} 39. b5 {[%emt 0:00:55]} e3 {[%emt 0:00:46]} 40. Re1 {[%emt 0:03:03]} Re7 {[%emt 0:00:46]} 41. b6 {[%emt 0:32:44]} e2 {[%emt 0:05:16]} 42. Kb4 {[%emt 0:00:00]} Rd8 {[%emt 0:04:04]} 43. a5 {[%emt 0:00:00]} Rd1 {[%emt 0:00:58]} 44. Rc1 {[%emt 0:00:00]} Rd4+ {[%emt 0:20:11]} 45. Kb5 {[%emt 0:00:00]} Re5+ {[%emt 0:01:33]} 46. Rc5 {[%emt 0:00:00]} Ree4 {[%emt 0:01:52]} 47. Ka6 {[%emt 0:00:00]} Rb4 {[%emt 0:00:14]} 48. Rb5 {[%emt 0:00:00]} Kg5 {[%emt 0:01:26]} 49. Rxb4 {[%emt 0:00:00]} Rxb4 {[%emt 0:00:04]} 50. Rxe2 {[%emt 0:00:00]} 1-0

[Event "GER-ch Women 2020"]
[Site "Magdeburg"]
[Date "2020.08.17"]
[Round "2.10"]
[White "Kuehnel, Lena"]
[Black "Reitz, Theresa"]
[Result "1/2-1/2"]
[ECO "B42"]
[WhiteElo "1972"]
[BlackElo "1942"]
[Annotator "NA"]
[PlyCount "72"]
[EventDate "2020.08.16"]
[EventType "swiss"]
[EventCountry "GER"]
[SourceTitle "playchess.com"]
[Source "ChessBase"]
[SourceQuality "1"]
[TimeControl "40/5400+30:1800+30"]

1. e4 {[%emt 0:00:00]} c5 {[%emt 0:00:00]} 2. Nf3 {[%emt 0:00:00]} e6 {[%emt 0:00:00]} 3. d4 {[%emt 0:00:00]} cxd4 {[%emt 0:00:00]} 4. Nxd4 {[%emt 0:00:00]} a6 {[%emt 0:00:06]} 5. Bd3 {[%emt 0:00:55]} Bc5 {[%emt 0:01:55]} 6. Nb3 {[%emt 0:00:45]} Ba7 {[%emt 0:00:09]} 7. O-O {[%emt 0:02:45]} Nc6 {[%emt 0:01:33]} 8. c4 {[%emt 0:03:20]} Nf6 {[%emt 0:01:07]} 9. Qe2 {[%emt 0:02:04] B42: Sicilian: Kan Variation: 5 Bd3.} Ne5 {[%emt 0:01:40]} 10. Nc3 {[%emt 0:05:20]} d6 {[%emt 0:05:26]} 11. Kh1 {[%emt 0:03:45] [#]} Nfg4 $146 {[%emt 0:07:20]} ({Predecessor:} 11... O-O 12. Be3 Bxe3 13. Qxe3 Qc7 14. Rac1 b6 15. f4 Nxd3 16. Qxd3 Bb7 17. Nd4 Rac8 {1-0 (26) Lepot,S (1982)-Peyre,C (1845) Pau 2008}) 12. Bf4 $2 {[%emt 0:24:08]} (12. f4 $1 $11 Nxh2 13. fxe5 Nxf1 14. Qe1) 12... Nxf2+ {[%emt 0:14:38]} 13. Rxf2 {[%emt 0:00:08]} Bxf2 {[%emt 0:00:17]} 14. Bc2 {[%emt 0:04:32]} Ba7 {[%emt 0:03:20]} 15. c5 {[%emt 0:08:20]} Qf6 {[%emt 0:08:16]} (15... f6 $19 16. Rd1 O-O) 16. Rf1 {[%emt 0:01:54]} h5 {[%emt 0:07:25]} ({But not} 16... dxc5 $6 17. Bg3 $11) 17. cxd6 {[%emt 0:04:38]} g5 {[%emt 0:06:46]} 18. Be3 {[%emt 0:07:33]} Qg7 {[%emt 0:01:50]} 19. Bxa7 {[%emt 0:01:45]} Rxa7 {[%emt 0:00:07]} 20. Na4 {[%emt 0:05:04]} Bd7 {[%emt 0:03:00]} 21. Nb6 {[%emt 0:00:32]} Bb5 {[%emt 0:01:59]} 22. Qf2 {[%emt 0:03:13]} Bxf1 {[%emt 0:07:53]} 23. Qxf1 {[%emt 0:00:29]} Nc6 {[%emt 0:07:10]} 24. Nc5 {[%emt 0:05:24]} Qxb2 {[%emt 0:07:05]} 25. Bb3 {[%emt 0:01:05]} Rh6 {[%emt 0:03:28]} 26. d7+ {[%emt 0:03:57]} Ke7 {[%emt 0:04:06]} 27. Nc8+ {[%emt 0:00:24]} Kd8 {[%emt 0:00:30]} 28. Nxa7 {[%emt 0:00:19]} Nxa7 {[%emt 0:00:38]} 29. Nxb7+ {[%emt 0:02:28]} Kxd7 {[%emt 0:00:27]} 30. Qxf7+ {[%emt 0:01:47]} Kc6 {[%emt 0:00:34]} 31. Nd8+ $18 {[%emt 0:03:01] Discovered Attack} Kd6 {[%emt 0:02:00]} 32. Nb7+ {[%emt 0:01:10]} Ke5 {[%emt 0:00:55]} 33. Qg7+ {[%emt 0:01:54]} Rf6 {[%emt 0:00:27]} 34. Qxg5+ {[%emt 0:00:50]} Rf5 {[%emt 0:00:26]} 35. Qg7+ {[%emt 0:01:43]} Kxe4 {[%emt 0:01:35]} 36. Nc5+ {[%emt 0:01:19]} Ke3 {[%emt 0:00:30]} 1/2-1/2

[Event "GER-ch Women 2020"]
[Site "Magdeburg"]
[Date "2020.08.17"]
[Round "2.11"]
[White "Roos, Karin"]
[Black "Zimmer, Elke"]
[Result "0-1"]
[ECO "B07"]
[WhiteElo "1772"]
[BlackElo "1952"]
[Annotator "NA"]
[PlyCount "80"]
[EventDate "2020.08.16"]
[EventType "swiss"]
[EventCountry "GER"]
[SourceTitle "playchess.com"]
[Source "ChessBase"]
[SourceQuality "1"]
[TimeControl "40/5400+30:1800+30"]

1. e4 {[%emt 0:00:00]} d6 {[%emt 0:00:00]} 2. d4 {[%emt 0:00:25]} Nf6 {[%emt 0:00:00]} 3. Nc3 {[%emt 0:02:20]} g6 {[%emt 0:00:00]} 4. Be3 {[%emt 0:02:26]} Bg7 {[%emt 0:00:19]} 5. Qd2 {[%emt 0:00:26]} e5 {[%emt 0:01:23] [#]} 6. Bc4 $146 {[%emt 0:01:34] B07: Pirc Defence: Miscellaneous Systems.} ({Predecessor:} 6. dxe5 dxe5 7. Qxd8+ Kxd8 8. Bc4 Be6 9. Bxe6 fxe6 10. Nf3 Nbd7 11. Nd2 Ng4 12. Bg5+ Bf6 13. Bxf6+ Ngxf6 {½-½ (30) Gulko,B (2584)-Perelshteyn,E (2442) Seattle 2003}) 6... exd4 {[%emt 0:00:26]} 7. Bxd4 {[%emt 0:00:08]} Nc6 {[%emt 0:00:20]} 8. Be3 {[%emt 0:01:56]} h5 {[%emt 0:03:24]} 9. f3 {[%emt 0:01:57]} Na5 {[%emt 0:00:50]} 10. Bd3 {[%emt 0:01:56]} Be6 {[%emt 0:00:44]} 11. Nge2 {[%emt 0:01:20]} a6 {[%emt 0:01:15]} 12. Bg5 {[%emt 0:03:49]} Qd7 {[%emt 0:01:35]} (12... Nc4 $14 13. Bxc4 Bxc4) 13. Nf4 {[%emt 0:03:17]} (13. Nd5 $1 $16 {[%cal Rd5f6]} Bxd5 14. exd5 (14. Qxa5 Bc6 $14)) 13... Nc4 $2 {[%emt 0:02:31] [#]} (13... Nc6 $14) 14. Bxc4 $1 {[%emt 0:03:50]} Bxc4 {[%emt 0:00:52]} 15. Qd4 $1 {[%emt 0:00:35] Double Attack} b5 {[%emt 0:02:02]} 16. O-O-O $2 {[%emt 0:01:36]} (16. Ncd5 $18 {is more deadly.} Bxd5 17. Bxf6 (17. exd5 Qf5 $17) 17... Bxf6 18. Qxf6) 16... c5 {[%emt 0:00:57]} 17. Qxd6 $2 {[%emt 0:00:57]} (17. Qd2 $16) 17... Qxd6 {[%emt 0:00:05]} 18. Rxd6 {[%emt 0:00:20]} Nh7 {[%emt 0:00:04]} 19. Nh3 {[%emt 0:15:46]} Be5 $2 {[%emt 0:03:05]} (19... Nxg5 $17 20. Nxg5 Be5) 20. Rdd1 {[%emt 0:06:25]} Nxg5 {[%emt 0:01:33]} 21. Nd5 {[%emt 0:09:57]} Nxh3 {[%emt 0:00:48]} 22. gxh3 {[%emt 0:00:17]} Bxd5 {[%emt 0:02:28]} 23. Rxd5 {[%emt 0:00:19]} Bd4 {[%emt 0:00:10]} 24. c3 {[%emt 0:05:20]} Be3+ {[%emt 0:00:19]} 25. Kc2 {[%emt 0:00:16]} Rd8 {[%emt 0:00:24]} 26. Re1 {[%emt 0:03:27]} Bf4 {[%emt 0:00:35]} 27. Rxc5 {[%emt 0:01:18]} Rd2+ {[%emt 0:00:32]} 28. Kb3 {[%emt 0:00:25]} O-O {[%emt 0:00:27]} 29. Rc6 {[%emt 0:04:08]} Ra8 {[%emt 0:06:46]} 30. e5 {[%emt 0:01:50]} a5 {[%emt 0:04:19]} 31. Re4 {[%emt 0:00:40]} Bxh2 {[%emt 0:01:26]} 32. f4 {[%emt 0:02:30]} a4+ {[%emt 0:00:39]} 33. Ka3 {[%emt 0:00:12]} Bg1 {[%emt 0:03:23]} 34. e6 {[%emt 0:01:46]} f5 {[%emt 0:22:18]} 35. Re5 {[%emt 0:07:14]} Rb8 {[%emt 0:04:38]} 36. e7 {[%emt 0:02:36]} Kf7 {[%emt 0:00:10]} 37. Ree6 $19 {[%emt 0:02:01]} (37. e8=R $142 Rxe8 38. Rc7+ Kf8 39. Rxb5) 37... Bc5+ {[%emt 0:02:24]} 38. b4 {[%emt 0:00:43]} Bxe7 {[%emt 0:00:27]} 39. Rxg6 {[%emt 0:01:18]} Rg8 {[%emt 0:03:55]} 40. Rh6 {[%emt 0:05:02]} Rgg2 {[%emt 0:01:08]} 0-1